bitfinex/quotes_BTCUSD_20240901
["timestamp","ask_amount","ask_price","bid_price","bid_amount"]
[1725167585778,1.64695503,58447.0,58446.0,0.0028998]
[1725167586011,1.64695503,58447.0,58431.0,0.0004]
[1725167586012,0.518417,58432.0,58431.0,0.0004]
[1725167586247,1.65241466,58432.0,58431.0,0.0004]
[1725167586737,1.77541466,58432.0,58431.0,0.0004]
[1725167586970,1.84871466,58432.0,58431.0,0.0004]
[1725167587199,1.87555136,58432.0,58431.0,0.0004]
[1725167587426,1.87555136,58432.0,58417.0,0.1]
[1725167587427,1.29752203,58424.0,58417.0,0.1]
[1725167587664,1.73984703,58424.0,58417.0,0.1]
[1725167587886,1.92891069,58424.0,58417.0,0.1]
[1725167588096,1.89794703,58424.0,58417.0,0.1]
[1725167588321,1.9615795,58424.0,58417.0,0.1]
[1725167588532,2.04238625,58424.0,58417.0,0.1]
[1725167588760,2.04238625,58424.0,58387.0,0.05108869]
[1725167588761,0.518804,58388.0,58387.0,0.05108869]
[1725167588981,0.518804,58388.0,58385.0,0.07686557]
[1725167588982,0.0733,58418.0,58371.0,0.0120211]
[1725167588983,0.513945,58372.0,58371.0,0.0120211]
[1725167589201,0.513945,58372.0,58371.0,0.0070211]
[1725167589202,1.4622225,58372.0,58371.0,0.0070211]
[1725167589477,1.37903768,58372.0,58371.0,0.0070211]
[1725167589694,0.979575,58372.0,58371.0,0.0070211]
[1725167589912,0.123,58372.0,58371.0,0.0070211]
[1725167590159,0.20290009,58372.0,58371.0,0.0070211]
[1725167590803,0.20290009,58372.0,58371.0,0.00898909]
[1725167590804,0.04488259,58372.0,58371.0,0.00898909]
[1725167591017,0.02188259,58372.0,58371.0,0.00898909]
[1725167591238,0.02188259,58372.0,58367.0,0.0787]
[1725167591457,0.18019359,58368.0,58360.0,0.0787]
[1725167591678,0.02298333,58361.0,58360.0,0.0787]
[1725167591889,0.04598333,58361.0,58360.0,0.0787]
[1725167592355,0.02298333,58361.0,58360.0,0.0787]
[1725167592569,0.02298333,58361.0,58360.0,0.25005]
[1725167592775,0.02298333,58361.0,58360.0,0.59275]
[1725167593439,0.02298333,58361.0,58360.0,0.93545]
[1725167596176,0.02276527,58361.0,58360.0,0.93545]
[1725167599948,0.02276527,58361.0,58360.0,1.27815]
[1725167601162,0.02276527,58361.0,58360.0,1.2790509]
[1725167601378,0.02358427,58361.0,58360.0,1.6217509]
[1725167601606,0.02358427,58361.0,58360.0,1.6237509]
[1725167602103,0.171286,58382.0,58360.0,0.4223009]
[1725167602349,0.1580175,58379.0,58377.0,0.171299]
[1725167602565,0.023,58378.0,58360.0,0.4223009]
[1725167602780,0.023,58378.0,58377.0,0.5139]
[1725167603635,0.1580175,58384.0,58381.0,0.171288]
[1725167603636,0.123,58383.0,58381.0,0.171288]
[1725167604466,0.123,58383.0,58377.0,0.3426]
[1725167604467,0.023,58383.0,58382.0,0.171285]
[1725167605118,0.023,58386.0,58382.0,0.171285]
[1725167605329,0.1580175,58385.0,58382.0,0.171285]
[1725167605534,0.1580175,58385.0,58381.0,0.171286]
[1725167605535,0.123,58384.0,58381.0,0.171286]
[1725167605747,0.123,58384.0,58382.0,0.171285]
[1725167605964,0.123,58384.0,58383.0,0.342565]
[1725167606194,0.123,58384.0,58374.0,0.0787]
[1725167606620,0.123,58384.0,58383.0,0.171282]
[1725167606829,0.023,58384.0,58383.0,0.171282]
[1725167607264,0.023,58384.0,58380.0,0.34258]
[1725167607492,0.023,58384.0,58378.0,0.342592]
[1725167607735,0.1,58390.0,58374.0,0.0787]
[1725167607736,0.1,58390.0,58389.0,0.513795]
[1725167607969,0.18987257,58396.0,58395.0,0.171247]
[1725167608183,0.18987257,58396.0,58392.0,0.342512]
[1725167608437,0.18987257,58396.0,58394.0,0.171249]
[1725167608668,0.36111957,58396.0,58391.0,0.171258]
[1725167608883,0.36111957,58396.0,58388.0,0.0764]
[1725167608884,0.18987257,58396.0,58393.0,0.171253]
[1725167609117,0.18487257,58396.0,58394.0,0.17125]
[1725167609371,0.18487257,58396.0,58391.0,0.342516]
[1725167609372,0.1,58395.0,58391.0,0.342516]
[1725167609584,0.1,58395.0,58394.0,0.17125]
[1725167610506,0.1,58395.0,58394.0,0.85625]
[1725167610730,0.1,58395.0,58391.0,0.342516]
[1725167610731,0.2713175,58404.0,58391.0,0.342516]
[1725167610944,0.1580175,58400.0,58388.0,0.0764]
[1725167611150,0.1580175,58400.0,58396.0,0.342489]
[1725167611376,0.1580175,58400.0,58399.0,0.513706]
[1725167611588,0.02684916,58404.0,58402.0,0.171225]
[1725167611800,0.02684916,58404.0,58400.0,0.342463]
[1725167612044,0.04074134,58406.0,58405.0,0.171218]
[1725167612728,0.04074134,58406.0,58405.0,0.513654]
[1725167612941,0.04074134,58406.0,58405.0,0.85609]
[1725167613810,0.04155934,58406.0,58405.0,0.85609]
[1725167614338,0.04155934,58406.0,58405.0,0.513654]
[1725167614779,0.06455934,58406.0,58405.0,0.513654]
[1725167615222,0.06455934,58406.0,58405.0,0.85609]
[1725167615953,0.04155934,58406.0,58405.0,0.85609]
[1725167616207,0.04155934,58406.0,58398.0,0.171237]
[1725167616208,0.171224,58403.0,58398.0,0.171237]
[1725167616426,0.04155934,58406.0,58391.0,0.171257]
[1725167616427,0.1580175,58399.0,58391.0,0.171257]
[1725167616650,0.04155934,58406.0,58388.0,0.0764]
[1725167616651,0.1580175,58393.0,58388.0,0.0764]
[1725167616861,0.171245,58396.0,58391.0,0.171258]
[1725167617089,0.1580175,58397.0,58391.0,0.171258]
[1725167617333,0.023,58396.0,58389.0,0.342529]
[1725167617552,0.023,58396.0,58392.0,0.171254]
[1725167617762,0.023,58396.0,58388.0,0.0764]
[1725167618205,0.171255,58393.0,58388.0,0.247666]
[1725167618417,0.023,58392.0,58388.0,0.247666]
[1725167618645,0.171266,58389.0,58383.0,0.30998]
[1725167618863,0.342525,58390.0,58383.0,0.30998]
[1725167618864,0.171271,58387.0,58383.0,0.1387]
[1725167619348,0.023,58392.0,58383.0,0.1387]
[1725167619349,0.023,58386.0,58383.0,0.1387]
[1725167619568,0.194275,58386.0,58383.0,0.1387]
[1725167619770,0.023,58386.0,58383.0,0.1387]
[1725167620023,0.023,58387.0,58383.0,0.1387]
[1725167620235,0.023,58387.0,58383.0,0.30998]
[1725167621525,0.023,58387.0,58383.0,0.36034453]
[1725167621961,0.194271,58387.0,58383.0,0.18906453]
[1725167622385,0.023,58387.0,58386.0,0.05036453]
[1725167622848,0.023,58387.0,58385.0,0.05036453]
[1725167623523,0.023,58387.0,58386.0,0.0755468]
[1725167623731,0.171264,58390.0,58386.0,0.0755468]
[1725167623732,0.023,58389.0,58386.0,0.0755468]
[1725167623951,0.023,58389.0,58388.0,0.05081079]
[1725167624128,0.194265,58389.0,58388.0,0.05081079]
[1725167624328,0.023,58389.0,58387.0,0.10072907]
[1725167624465,0.5005275,58393.0,58387.0,0.10072907]
[1725167624466,0.194262,58390.0,58387.0,0.10072907]
[1725167624667,0.194262,58390.0,58389.0,0.07630797]
[1725167625288,0.194262,58390.0,58389.0,0.12591134]
[1725167625496,0.194262,58390.0,58388.0,0.12591134]
[1725167625719,0.023,58390.0,58388.0,0.12591134]
[1725167625932,0.171259,58391.0,58389.0,0.12591134]
[1725167626132,0.194262,58390.0,58389.0,0.12591134]
[1725167626334,0.023,58392.0,58389.0,0.10188547]
[1725167626554,0.194256,58392.0,58391.0,0.07642377]
[1725167626775,0.023,58392.0,58391.0,0.07642377]
[1725167627017,0.342436,58405.0,58394.0,0.342498]
[1725167627244,0.342442,58404.0,58398.0,0.171238]
[1725167627451,0.171227,58402.0,58398.0,0.171238]
[1725167627751,0.171227,58402.0,58397.0,0.05094751]
[1725167627752,0.1,58401.0,58397.0,0.05094751]
[1725167628166,0.1,58401.0,58397.0,0.39342951]
[1725167628381,0.000818,58406.0,58400.0,0.342465]
[1725167628382,0.1588355,58406.0,58400.0,0.342465]
[1725167628589,0.1588355,58406.0,58399.0,0.0806]
[1725167628590,0.1,58405.0,58403.0,0.171223]
[1725167628992,0.000818,58406.0,58402.0,0.342452]
[1725167629201,0.000818,58406.0,58405.0,0.171218]
[1725167629410,0.000818,58406.0,58405.0,0.90703751]
[1725167629617,0.000818,58406.0,58405.0,0.93669]
[1725167629827,0.000818,58406.0,58405.0,1.01319891]
[1725167630489,0.27367848,58417.0,58407.0,0.342423]
[1725167630717,0.171187,58416.0,58410.0,0.171201]
[1725167631153,0.3291985,58418.0,58412.0,0.171197]
[1725167631773,0.171183,58417.0,58412.0,0.171197]
[1725167631993,0.3291985,58418.0,58412.0,0.171197]
[1725167632371,0.3291985,58418.0,58409.0,0.342409]
[1725167632372,0.1,58417.0,58413.0,0.171192]
[1725167632576,0.1,58417.0,58414.0,0.17119]
[1725167633153,0.1580175,58418.0,58414.0,0.17119]
[1725167633383,0.1580175,58418.0,58413.0,0.342384]
[1725167633554,0.02684311,58419.0,58416.0,0.251784]
[1725167633757,0.023,58418.0,58416.0,0.251784]
[1725167634631,0.1810175,58418.0,58416.0,0.251784]
[1725167634803,0.1,58417.0,58416.0,0.171184]
[1725167635015,0.123,58417.0,58416.0,0.171184]
[1725167635423,0.123,58417.0,58412.0,0.484693]
[1725167635424,0.123,58417.0,58414.0,0.17119]
[1725167635765,0.123,58417.0,58412.0,0.484693]
[1725167635766,0.023,58416.0,58415.0,0.171188]
[1725167635960,0.023,58416.0,58415.0,0.513565]
[1725167636177,0.123,58418.0,58414.0,0.34238]
[1725167636369,0.023,58418.0,58417.0,0.513549]
[1725167636574,0.023,58418.0,58417.0,0.171183]
[1725167638974,0.023,58418.0,58413.0,0.171194]
[1725167638975,0.19418,58418.0,58413.0,0.171194]
[1725167639204,0.1580175,58415.0,58413.0,0.171194]
[1725167639437,0.023,58414.0,58413.0,0.171194]
[1725167640500,0.023,58414.0,58412.0,0.0806]
[1725167642126,0.023,58414.0,58411.0,0.171198]
[1725167643510,0.023,58416.0,58411.0,0.171198]
[1725167644407,0.023,58416.0,58413.0,0.0792]
[1725167644622,0.17118,58418.0,58413.0,0.250394]
[1725167644623,0.023,58417.0,58413.0,0.250394]
[1725167645321,0.023,58417.0,58413.0,0.0792]
[1725167645487,0.023,58419.0,58417.0,0.0753]
[1725167645659,0.171174,58420.0,58417.0,0.0753]
[1725167645865,0.123,58419.0,58417.0,0.0753]
[1725167646060,0.023,58419.0,58417.0,0.0753]
[1725167646272,0.171167,58423.0,58417.0,0.246482]
[1725167646634,0.123,58422.0,58417.0,0.246482]
[1725167647426,0.18485573,58427.0,58417.0,0.0753]
[1725167647630,0.18485573,58427.0,58421.0,0.342341]
[1725167647631,0.1,58426.0,58421.0,0.342341]
[1725167647804,0.02683823,58427.0,58424.0,0.171161]
[1725167648468,0.171134,58434.0,58428.0,0.17115]
[1725167648604,0.5002785,58435.0,58427.0,0.171152]
[1725167648605,0.171137,58433.0,58427.0,0.171152]
[1725167649303,0.171136,58433.0,58427.0,0.171152]
[1725167649501,0.1,58432.0,58427.0,0.171152]
[1725167649683,0.023,58431.0,58427.0,0.171152]
[1725167650488,0.023,58431.0,58423.0,0.40733]
[1725167650773,0.023,58431.0,58430.0,0.171144]
[1725167650905,0.023,58433.0,58430.0,0.171144]
[1725167651782,0.023,58433.0,58432.0,0.0753]
[1725167651919,0.023,58433.0,58432.0,0.246439]
[1725167652135,0.1580175,58439.0,58435.0,0.171129]
[1725167652340,0.171113,58441.0,58436.0,0.065]
[1725167652740,0.18485025,58443.0,58436.0,0.236126]
[1725167652741,0.17111,58442.0,58436.0,0.236126]
[1725167653416,0.1,58441.0,58437.0,0.171122]
[1725167653627,0.023,58441.0,58436.0,0.236126]
[1725167654031,0.194112,58441.0,58436.0,0.236126]
[1725167654284,0.1,58440.0,58436.0,0.236126]
[1725167654501,0.023,58439.0,58436.0,0.236126]
[1725167654949,0.194113,58441.0,58436.0,0.065]
[1725167655173,0.1,58440.0,58436.0,0.065]
[1725167655398,0.023,58439.0,58436.0,0.236126]
[1725167655850,0.023,58439.0,58437.0,0.171124]
[1725167656334,0.023,58439.0,58436.0,0.065]
[1725167656569,0.1580175,58439.0,58436.0,0.065]
[1725167656810,0.023,58438.0,58436.0,0.236126]
[1725167657055,0.023,58438.0,58436.0,0.065]
[1725167661789,0.023,58438.0,58436.0,0.236127]
[1725167662021,0.023817,58438.0,58437.0,0.588672]
[1725167662259,0.023817,58438.0,58437.0,0.93092]
[1725167662260,0.000817,58438.0,58437.0,0.93092]
[1725167663130,0.000817,58438.0,58437.0,0.588672]
[1725167664902,0.000817,58438.0,58437.0,0.93092]
[1725167665322,0.000817,58438.0,58437.0,0.588672]
[1725167665535,0.000817,58438.0,58437.0,0.93092]
[1725167672711,0.000817,58438.0,58437.0,1.338768]
[1725167675068,0.000817,58438.0,58437.0,1.4987855]
[1725167675302,0.000817,58438.0,58437.0,1.8410335]
[1725167675544,0.000817,58438.0,58437.0,1.8920587]
[1725167675769,0.000817,58438.0,58437.0,1.8970587]
[1725167676267,0.000817,58438.0,58437.0,0.99652]
[1725167677381,0.000817,58438.0,58437.0,1.338768]
[1725167679207,0.000817,58438.0,58437.0,1.4967855]
[1725167680388,0.000817,58438.0,58437.0,1.5479073]
[1725167681594,0.000817,58438.0,58437.0,1.89015716]
[1725167681804,0.000817,58438.0,58437.0,1.54790916]
[1725167683024,0.000817,58438.0,58437.0,1.54990916]
[1725167683457,0.000817,58438.0,58437.0,1.8410335]
[1725167683661,0.000817,58438.0,58437.0,1.4987855]
[1725167684682,0.000817,58438.0,58437.0,1.8410335]
[1725167684912,0.000817,58438.0,58437.0,1.4987855]
[1725167685671,0.000817,58438.0,58437.0,1.8410335]
[1725167687415,0.000817,58438.0,58437.0,1.8460335]
[1725167690066,0.000817,58438.0,58437.0,1.89717645]
[1725167690293,0.000817,58438.0,58437.0,1.54992845]
[1725167690503,0.000817,58438.0,58437.0,0.654272]
[1725167690715,0.000817,58438.0,58437.0,0.171124]
[1725167691154,0.000817,58438.0,58437.0,0.513372]
[1725167692016,0.067017,58438.0,58437.0,0.513372]
[1725167692451,0.000817,58438.0,58437.0,0.513372]
[1725167693063,0.000817,58438.0,58437.0,0.85562]
[1725167697158,0.000817,58438.0,58437.0,0.93572]
[1725167697388,0.000817,58438.0,58437.0,1.277968]
[1725167698235,0.000818,58460.0,58454.0,0.655623]
[1725167698708,0.000818,58460.0,58454.0,0.995772]
[1725167698918,0.000818,58460.0,58454.0,0.855372]
[1725167702071,0.000818,58460.0,58454.0,0.171074]
[1725167702290,0.1588355,58460.0,58454.0,0.171074]
[1725167702536,0.02148,58455.0,58454.0,0.171074]
[1725167702775,0.02148,58455.0,58450.0,0.342172]
[1725167703014,0.023,58454.0,58452.0,0.171079]
[1725167703480,0.023,58454.0,58453.0,0.171077]
[1725167703933,0.023,58454.0,58453.0,0.513232]
[1725167704623,0.00818,58455.0,58454.0,0.855372]
[1725167705539,0.00818,58455.0,58454.0,1.280821]
[1725167706031,0.00818,58455.0,58454.0,2.1281365]
[1725167706255,0.00818,58455.0,58454.0,2.2039365]
[1725167706482,0.00818,58455.0,58454.0,1.8617875]
[1725167706693,0.00818,58455.0,58454.0,2.30639685]
[1725167706909,0.00818,58455.0,58454.0,2.30839685]
[1725167707556,0.00818,58455.0,58454.0,2.2059365]
[1725167707771,0.00818,58455.0,58454.0,2.30839685]
[1725167708204,0.00818,58455.0,58454.0,2.3059365]
[1725167708424,0.00818,58455.0,58454.0,2.43391388]
[1725167708649,0.00818,58455.0,58454.0,2.3059365]
[1725167710433,0.00818,58455.0,58454.0,2.43380481]
[1725167710874,0.00818,58455.0,58454.0,2.43380479]
[1725167711090,0.00818,58455.0,58454.0,2.3059365]
[1725167711577,0.00818,58455.0,58454.0,2.43376369]
[1725167711996,0.00818,58455.0,58454.0,2.51932369]
[1725167712440,0.00818,58455.0,58454.0,2.2204225]
[1725167712892,0.00818,58455.0,58454.0,2.3914965]
[1725167713337,0.00818,58455.0,58454.0,2.49376024]
[1725167713553,0.00818,58455.0,58454.0,2.3894965]
[1725167714204,1e-06,58455.0,58454.0,2.3914965]
[1725167714435,1e-06,58455.0,58454.0,1.96796911]
[1725167714679,1e-06,58455.0,58454.0,2.0473475]
[1725167714894,1e-06,58455.0,58454.0,2.0493475]
[1725167715327,1e-06,58455.0,58454.0,2.0443475]
[1725167715547,1e-06,58455.0,58454.0,1.283081]
[1725167715772,1e-06,58455.0,58454.0,0.598783]
[1725167715995,1e-06,58455.0,58454.0,0.08556]
[1725167715996,0.063001,58455.0,58454.0,0.08556]
[1725167718467,0.063001,58455.0,58454.0,0.256634]
[1725167722009,0.063001,58455.0,58454.0,0.2575327]
[1725167727719,0.063001,58455.0,58454.0,0.5996817]
[1725167729971,0.063001,58455.0,58454.0,0.2575327]
[1725167730593,0.063001,58455.0,58454.0,0.5996817]
[1725167730820,0.063001,58455.0,58454.0,0.2575327]
[1725167734518,0.063001,58455.0,58454.0,0.5996817]
[1725167736263,0.063001,58455.0,58454.0,0.2575327]
[1725167740843,0.063001,58455.0,58454.0,0.0864587]
[1725167741239,0.063001,58455.0,58454.0,0.2575327]
[1725167742440,0.063001,58455.0,58454.0,0.0864587]
[1725167742441,0.576215,58455.0,58454.0,0.0864587]
[1725167742671,0.954658,58455.0,58454.0,0.0864587]
[1725167742918,1.296801,58455.0,58454.0,0.0864587]
[1725167749966,0.878358,58455.0,58454.0,0.0864587]
[1725167751286,0.707286,58455.0,58454.0,0.0864587]
[1725167752112,0.536214,58455.0,58454.0,0.0864587]
[1725167752524,0.194071,58455.0,58454.0,0.0864587]
[1725167756536,0.194888,58455.0,58454.0,0.0864587]
[1725167757391,0.537031,58455.0,58454.0,0.0864587]
[1725167757812,0.879174,58455.0,58454.0,0.0864587]
[1725167758021,0.537031,58455.0,58454.0,0.0864587]
[1725167759270,0.023817,58455.0,58454.0,0.0864587]
[1725167759542,0.194888,58455.0,58454.0,0.0864587]
[1725167761391,0.023817,58455.0,58454.0,0.0864587]
[1725167761593,0.000818,58460.0,58454.0,0.3326327]
[1725167761798,0.023818,58460.0,58454.0,0.1615587]
[1725167762147,0.171061,58459.0,58454.0,0.1615587]
[1725167762385,0.171062,58458.0,58454.0,0.1615587]
[1725167762842,0.171062,58458.0,58454.0,0.3326317]
[1725167764014,0.171062,58458.0,58454.0,0.1615587]
[1725167764240,0.271066,58457.0,58454.0,0.0864587]
[1725167764428,0.1,58457.0,58454.0,0.0864587]
[1725167764925,0.1,58457.0,58455.0,0.17107]
[1725167765145,0.1,58457.0,58456.0,0.171068]
[1725167765451,0.1,58459.0,58456.0,0.171068]
[1725167767348,0.000818,58460.0,58456.0,0.0653]
[1725167767583,0.000818,58460.0,58458.0,0.171062]
[1725167768640,0.000818,58459.0,58458.0,0.171062]
[1725167770399,0.000818,58459.0,58458.0,0.513187]
[1725167778981,0.004816,58462.0,58460.0,0.171056]
[1725167779204,0.004816,58462.0,58461.0,0.588862]
[1725167780355,0.004816,58462.0,58461.0,0.93097]
[1725167784955,0.004816,58462.0,58461.0,0.99467]
[1725167788684,0.004816,58462.0,58458.0,0.3430238]
[1725167788886,0.004816,58462.0,58461.0,0.171054]
[1725167792650,0.004816,58462.0,58459.0,0.342119]
[1725167793010,0.004816,58462.0,58461.0,0.171054]
[1725167796012,0.004816,58462.0,58459.0,0.513176]
[1725167796419,0.004816,58462.0,58460.0,0.171056]
[1725167798843,0.004816,58462.0,58458.0,0.1719598]
[1725167799072,0.004816,58462.0,58459.0,0.171058]
[1725167799297,0.004816,58462.0,58460.0,0.171057]
[1725167800141,0.004816,58462.0,58459.0,0.171059]
[1725167801034,0.004816,58462.0,58458.0,0.0008998]
[1725167801035,0.17106,58459.0,58458.0,0.0008998]
[1725167804355,0.17106,58459.0,58458.0,0.00059515]
[1725167804581,0.94994879,58459.0,58458.0,0.00059515]
[1725167804815,0.97294879,58459.0,58458.0,0.00059515]
[1725167805254,1.52315877,58459.0,58458.0,0.00059515]
[1725167805943,1.86527877,58459.0,58458.0,0.00059515]
[1725167807052,1.89210221,58459.0,58458.0,0.00059515]
[1725167809056,1.89710221,58459.0,58458.0,0.00059515]
[1725167811737,1.45533342,58459.0,58458.0,0.00059515]
[1725167811956,1.50429223,58459.0,58458.0,0.00059515]
[1725167812399,1.40429223,58459.0,58458.0,0.00059515]
[1725167813447,0.90512344,58459.0,58458.0,0.00059515]
[1725167813661,0.99977223,58459.0,58458.0,0.00059515]
[1725167815026,1.00059023,58459.0,58458.0,0.00059515]
[1725167815663,1.10059023,58459.0,58458.0,0.00059515]
[1725167826843,0.86176872,58459.0,58458.0,0.00059515]
[1725167827458,1.03282872,58459.0,58458.0,0.00059515]
[1725167827687,0.69070872,58459.0,58458.0,0.00059515]
[1725167830749,0.12764144,58459.0,58458.0,0.00059515]
[1725167830962,0.000818,58459.0,58458.0,0.25275715]
[1725167831171,0.000818,58459.0,58458.0,0.65988215]
[1725167831862,0.000818,58459.0,58458.0,1.00200715]
[1725167840691,0.000818,58459.0,58458.0,1.34413215]
[1725167854754,0.000818,58459.0,58458.0,1.68625715]
[1725167855206,0.000818,58459.0,58458.0,1.73756013]
[1725167855428,0.000818,58459.0,58458.0,1.68625715]
[1725167855654,0.000818,58459.0,58458.0,1.73756013]
[1725167856578,0.000818,58459.0,58458.0,1.73956013]
[1725167856913,0.000818,58459.0,58458.0,1.68625715]
[1725167857143,0.000818,58459.0,58458.0,1.34413215]
[1725167858299,0.000818,58459.0,58458.0,0.59488215]
[1725167858802,0.000818,58459.0,58458.0,0.93700715]
[1725167863371,0.000818,58459.0,58458.0,1.68665715]
[1725167866523,0.000818,58459.0,58458.0,1.68865715]
[1725167868744,0.000818,58459.0,58458.0,1.68665715]
[1725167869806,0.000818,58459.0,58458.0,1.68865715]
[1725167870906,0.000818,58459.0,58458.0,1.68665715]
[1725167871315,0.000818,58459.0,58458.0,1.78923689]
[1725167871535,0.000818,58459.0,58458.0,1.68665715]
[1725167872037,0.000818,58459.0,58458.0,1.78923689]
[1725167872243,0.000818,58459.0,58458.0,1.68665715]
[1725167872935,0.000818,58459.0,58458.0,1.68865715]
[1725167873143,0.000818,58459.0,58458.0,1.79123689]
[1725167873327,0.000818,58459.0,58458.0,1.68865715]
[1725167874619,0.000818,58459.0,58458.0,1.79123689]
[1725167875515,0.000818,58459.0,58458.0,1.79423689]
[1725167875659,0.000818,58459.0,58458.0,1.79425797]
[1725167876285,0.000818,58459.0,58458.0,1.69165715]
[1725167876486,0.000818,58459.0,58458.0,1.81990818]
[1725167876905,0.000818,58459.0,58458.0,1.69165715]
[1725167877509,0.004816,58462.0,58458.0,1.69165715]
[1725167877510,0.004816,58462.0,58461.0,2.039394]
[1725167877711,0.004816,58462.0,58461.0,2.14104279]
[1725167878086,0.004816,58462.0,58461.0,2.24104279]
[1725167881016,0.004816,58462.0,58461.0,2.146394]
[1725167881227,0.004816,58462.0,58461.0,2.01512241]
[1725167881437,0.004816,58462.0,58461.0,1.88693479]
[1725167881643,0.004816,58462.0,58461.0,1.98948265]
[1725167881842,0.004816,58462.0,58461.0,1.98948288]
[1725167883757,0.004816,58462.0,58461.0,1.88693479]
[1725167884147,0.004816,58462.0,58461.0,1.98948288]
[1725167885899,0.004816,58462.0,58461.0,1.88693479]
[1725167886532,0.004816,58462.0,58461.0,1.98948842]
[1725167886743,0.004816,58462.0,58461.0,1.98948789]
[1725167886960,0.004816,58462.0,58461.0,1.88693479]
[1725167887437,0.004816,58462.0,58461.0,1.89693479]
[1725167887654,0.004816,58462.0,58461.0,1.89893479]
[1725167890038,0.004816,58462.0,58461.0,2.24104279]
[1725167891744,0.004816,58462.0,58461.0,1.89893479]
[1725167892167,0.004816,58462.0,58461.0,2.25922331]
[1725167892412,0.004816,58462.0,58461.0,1.91711531]
[1725167892987,0.004816,58462.0,58461.0,2.25922331]
[1725167899976,0.004816,58462.0,58461.0,1.82246652]
[1725167900201,0.004816,58462.0,58461.0,1.91711531]
[1725167901020,8.21427993,58470.0,58469.0,1.197213]
[1725167906420,8.21427993,58470.0,58469.0,1.333313]
[1725167906623,8.21427993,58470.0,58469.0,1.72664319]
[1725167907424,8.21427993,58470.0,58469.0,1.675374]
[1725167909313,8.21427993,58470.0,58469.0,1.539274]
[1725167910890,8.21427993,58470.0,58469.0,1.64187034]
[1725167912684,8.21427993,58470.0,58469.0,0.855152]
[1725167912900,8.21427993,58470.0,58469.0,0.513091]
[1725167913334,8.21427993,58470.0,58467.0,0.05132831]
[1725167913546,0.0792,58469.0,58465.0,0.22236931]
[1725167913761,0.0792,58469.0,58464.0,0.05132831]
[1725167914004,0.0792,58469.0,58467.0,0.171035]
[1725167914243,0.0792,58469.0,58464.0,0.05132831]
[1725167914464,0.0659,58466.0,58463.0,0.171047]
[1725167914689,0.0659,58466.0,58462.0,0.05132831]
[1725167914916,0.0659,58466.0,58462.0,0.17105]
[1725167915603,0.0659,58466.0,58463.0,0.171047]
[1725167916312,0.0659,58466.0,58464.0,0.171044]
[1725167917660,0.0659,58466.0,58465.0,0.171042]
[1725167920964,0.0659,58466.0,58461.0,0.342104]
[1725167921172,0.0659,58466.0,58464.0,0.171045]
[1725167921603,0.0659,58466.0,58460.0,0.05132831]
[1725167921853,0.0133,58463.0,58461.0,0.171052]
[1725167922277,0.0133,58463.0,58462.0,0.171051]
[1725167922481,0.0792,58463.0,58462.0,0.171051]
[1725167922923,0.0792,58463.0,58459.0,0.3430168]
[1725167923161,0.0792,58463.0,58461.0,0.171051]
[1725167923403,0.0792,58463.0,58459.0,0.3430168]
[1725167923404,0.0792,58463.0,58462.0,0.171051]
[1725167927090,0.0659,58463.0,58462.0,0.513153]
[1725167930086,0.000818,58464.0,58463.0,0.85524]
[1725167930300,0.000818,58464.0,58463.0,0.91564]
[1725167930514,0.000818,58464.0,58463.0,1.35238479]
[1725167931241,0.000818,58464.0,58463.0,1.43128479]
[1725167933180,0.000818,58464.0,58463.0,1.77338079]
[1725167933388,0.000818,58464.0,58463.0,1.82465231]
[1725167935843,0.000818,58464.0,58463.0,1.77538079]
[1725167936092,0.000818,58464.0,58463.0,1.78038079]
[1725167936321,0.000818,58464.0,58463.0,1.78128059]
[1725167937390,0.000818,58464.0,58463.0,2.20028387]
[1725167937605,0.000818,58464.0,58463.0,2.12337659]
[1725167937817,0.000818,58464.0,58463.0,2.22591963]
[1725167938438,0.000818,58464.0,58463.0,2.23591963]
[1725167938694,0.000818,58464.0,58463.0,2.23589601]
[1725167939601,0.000818,58464.0,58463.0,2.26152586]
[1725167940032,0.000818,58464.0,58463.0,2.13337659]
[1725167940475,8.21427993,58470.0,58469.0,2.027635]
[1725167940690,8.21427993,58470.0,58469.0,2.22479254]
[1725167940898,8.21427993,58470.0,58469.0,2.36041973]
[1725167941108,8.21427993,58470.0,58469.0,2.23228379]
[1725167942223,8.21427993,58470.0,58469.0,2.23028379]
[1725167942490,5.05767329,58470.0,58469.0,3.23785385]
[1725167942696,4.79220168,58470.0,58469.0,3.05733773]
[1725167942927,4.65537768,58470.0,58469.0,3.13380556]
[1725167944490,4.48434768,58470.0,58469.0,3.13380556]
[1725167944716,4.45014168,58470.0,58469.0,3.13380556]
[1725167945500,4.31331768,58470.0,58469.0,3.13380556]
[1725167945839,4.27911168,58470.0,58469.0,3.13380556]
[1725167946046,3.72805597,58470.0,58469.0,3.13380556]
[1725167946503,3.72805597,58470.0,58469.0,2.79663544]
[1725167946717,3.69384997,58470.0,58469.0,2.79663544]
[1725167947175,3.59123197,58470.0,58469.0,2.63915677]
[1725167947382,3.55702597,58470.0,58469.0,2.79663544]
[1725167947775,3.48861397,58470.0,58469.0,2.79663544]
[1725167948028,3.38599597,58470.0,58469.0,2.79663544]
[1725167948483,3.38599597,58470.0,58469.0,2.92443931]
[1725167949705,3.21496597,58470.0,58469.0,2.92533911]
[1725167949933,3.11234797,58470.0,58469.0,2.79753524]
[1725167950175,3.04393597,58470.0,58469.0,2.79753524]
[1725167951128,3.00972997,58470.0,58469.0,2.92527215]
[1725167951356,2.97552397,58470.0,58469.0,2.92527215]
[1725167951584,2.90711197,58470.0,58469.0,2.79753524]
[1725167951809,2.83869997,58470.0,58469.0,2.79753524]
[1725167952515,2.80449397,58470.0,58469.0,2.79753524]
[1725167952792,2.70187597,58470.0,58469.0,2.64005657]
[1725167953027,2.63346397,58470.0,58469.0,2.79753524]
[1725167953497,2.59925797,58470.0,58469.0,2.79753524]